Cogmind - Beta 16 --- EXPLORER MODE // 2025.11.12 @ 12:47:36 Player: K.K.Y. Result: Destroyed by 2G-I56(R) with Subdweller Machine Gun Performance ------------- Evolutions (0) 0 Regions Visited (2) 400 Robots Destroyed (24) 120 Value Destroyed (583) 583 Prototype IDs (0) 0 Alien Tech Used (0) 0 Bonus (0) 0 TOTAL SCORE: 1103 Bonus ------- None Cogmind --------- Core Integrity 0/250 Matter 300/300 Energy 250/250 System Corruption 0% Temperature Cool (0) Movement Walking (190) Ox1 Location -10/Subcaves Parts ------- > --- POWER (1) -------- Ion Engine > --- PROPULSION (3) --- Aluminum Leg Aluminum Leg > --- UTILITY (2) ------ Large Storage Unit > --- WEAPON (2) ------- Mining Claw > --- INVENTORY (15) --- Ion Engine Aluminum Leg Aluminum Leg Aluminum Leg Aluminum Leg Aluminum Leg Improved Heat Sink High-capacity Storage Unit Sensor Array Terrain Scanner Terrain Scan Processor Medium Laser Medium Laser Mining Laser Mining Laser Peak State ------------ > --- POWER ------------ Ion Engine > --- PROPULSION ------- Aluminum Leg Aluminum Leg Aluminum Leg > --- UTILITY ---------- Large Storage Unit Subdweller Optics > --- WEAPON ----------- Subdweller Beam Cannon Enhanced Flamer > --- INVENTORY -------- Ion Engine Aluminum Leg Aluminum Leg Aluminum Leg Aluminum Leg Aluminum Leg Improved Heat Sink High-capacity Storage Unit Sensor Array Terrain Scanner Terrain Scan Processor Medium Laser Medium Laser Mining Laser Mining Claw [Rating: 13] Favorites ----------- Power Ion Engine Engine Ion Engine Propulsion Aluminum Leg Leg Aluminum Leg Utility Structural Scanner Device Structural Scanner Storage Large Storage Unit Weapon Medium Laser Energy Gun Medium Laser Energy Cannon Subdweller Beam Cannon Special Weapon Enhanced Flamer Slashing Weapon Mining Claw Build | -11 -10 -10 ------- Run | Yrd Mat Sub Slots Evolved 1 | . 1 . Power . | . . . Propulsion 1 | . 1 . Utility . | . . . Weapon . | . . . Parts Attached 30 | 7 18 5 Power 4 | 1 3 . Engine 4 | 1 3 . Core . | . . . Reactor . | . . . Propulsion 13 | 2 11 . Treads . | . . . Leg 13 | 2 11 . Wheel . | . . . Hover . | . . . Flight . | . . . Utility 5 | 2 1 2 Device 3 | 1 . 2 Storage 2 | 1 1 . Processor . | . . . Hackware . | . . . Protection . | . . . Artifact . | . . . Weapon 8 | 2 3 3 Energy Gun 5 | 2 3 . Energy Cannon 1 | . . 1 Ballistic Gun . | . . . Ballistic Cannon . | . . . Launcher . | . . . Special Weapon 1 | . . 1 Impact Weapon . | . . . Slashing Weapon 1 | . . 1 Piercing Weapon . | . . . Special Melee Weapon . | . . . Unidentified Prototypes . | . . . Parts Lost 3 | . . 3 Power . | . . . Propulsion 1 | . . 1 Utility 1 | . . 1 Weapon 1 | . . 1 Highest Loss Streak 2 | . . 2 To Critical Strikes 1 | . . 1 Average Backups 9 | 2 8 14 Power . | . . 1 Propulsion 3 | . 2 5 Utility 4 | 1 4 5 Weapon 1 | . 1 3 Tool/Special . | . . . Unused Backups 7 | . . 7 Power . | . . . Propulsion . | . . . Utility 5 | . . 5 Weapon 2 | . . 2 Tool/Special . | . . . Average Slot Usage (%) 90 | . 91 86 Engine 11 | . 11 12 Leg 35 | . 34 37 Device 9 | . 10 6 Storage 12 | . 12 12 Energy Gun 16 | . 21 . Energy Cannon 1 | . . 5 Special Weapon 1 | . . 6 Peak Build Rating 13 | 7 9 13 Average Rating 8 | 4 8 9 On Entrance 4 | . 7 6 Avg Prop Armor Cover (%) . | . . . Naked Turns . | . . . Heaviest Build 37 | 20 30 37 Greatest Support 30 | 20 30 30 Greatest Overweight (x) 6 | 3 6 1 Average Overweight (x) . | . . . Largest Inventory Capacity 15 | 10 15 15 Average Capacity 12 | 8 12 15 Most Carried 15 | 7 15 15 Average Carried 9 | 2 8 14 Final Capacity 15 | 10 15 15 Final Carried 15 | 1 15 15 Class Distribution -------------------- 90% | Hacker-Mutant 9% | Scavenger-Mutant Dominant Class ---------------- Hacker-Mutant | -10/Materials Hacker-Mutant | -10/Subcaves Resources | -11 -10 -10 ----------- Run | Yrd Mat Sub Matter Collected 650 | 168 428 54 Remotely . | . . . Salvage Created 778 | . 644 134 Parts 41 | . 34 7 Haulers Intercepted 2 | . 2 . Recyclers Shooed 3 | . 3 . Parts Field Recycled . | . . . Retrieved Matter . | . . . Parts Self-Destructed . | . . . Prevented . | . . . Parts Restored . | . . . Kills | -11 -10 -10 ------- Run | Yrd Mat Sub Combat Hostiles Destroyed 13 | . 8 5 Melee 2 | . . 2 Guns 6 | . 6 . Cannons 1 | . . 1 Classes Destroyed 7 | . 6 1 Builder 4 | . 4 . Tunneler 1 | . 1 . Hauler 2 | . 2 . Recycler 1 | . 1 . Watcher 3 | . 3 . Grunt 8 | . 8 . Subdweller 5 | . . 5 Best Kill Streak 3 | . 3 2 Combat Bots Only 3 | . 3 2 Max Kills in Single Turn 1 | . 1 1 Gunslinging . | . . . Exploded . | . . . Melee 1 | . . 1 Uniques/NPCs Destroyed . | . . . Combat | -11 -10 -10 -------- Run | Yrd Mat Sub Hostile Shots Fired 139 | . 85 54 Missed 32 | . 21 11 Hits 107 | . 64 43 Projectile 107 | . 64 43 Critical Strikes 4 | . 3 1 Damage Taken 1129 | . 574 555 Core 261 | . 99 162 Absorbed by Shields . | . . . Ignored by Resistances 684 | . 352 332 Core Remaining (%) 100 | 100 . . Volleys Fired 86 | . 63 23 Largest 2 | . 2 2 Hottest 160 | . 100 160 Shots Fired 139 | . 108 31 Gun 110 | . 108 2 Cannon 6 | . . 6 Launcher . | . . . Special 23 | . . 23 Kinetic . | . . . Thermal 139 | . 108 31 Explosive . | . . . Electromagnetic . | . . . Robot Hit Streak 32 | . 17 32 Robot Miss Streak 2 | . 2 . Penetration Max . | . . . Secondary Targets 2 | . 2 . Max Gunslinging Chain 1 | . 1 . Shots Hit Robots 122 | . 84 38 Core Hits 35 | . 29 6 Critical Kills . | . . . Critical Parts Destroyed . | . . . Critical Strikes 13 | . 10 3 Burn 13 | . 10 3 Melee Attacks 21 | . . 21 Impact . | . . . Slashing 21 | . . 21 Piercing . | . . . Sneak Attacks . | . . . Combat Hostiles . | . . . Follow-up Attacks . | . . . Damage Inflicted 1729 | . 1044 685 Guns 1040 | . 1040 . Cannons 137 | . . 137 Explosions . | . . . Melee 420 | . . 420 Ramming 4 | . 4 . Kinetic . | . . . Thermal 1305 | . 1040 265 Explosive . | . . . Electromagnetic . | . . . Impact . | . . . Slashing 420 | . . 420 Piercing . | . . . Highest Corruption . | . . . Average Corruption . | . . . Corruption Purged . | . . . Corruption Blocked . | . . . Overload Shots . | . . . Overflow Damage . | . . . Projectiles . | . . . Explosions . | . . . Melee . | . . . Knockbacks . | . . . Impact . | . . . Kinetic . | . . . Secondary . | . . . Self-Inflicted Damage . | . . . Shots . | . . . Rammed . | . . . Targets Rammed 1 | . 1 . Kicked 1 | . 1 . Crushed . | . . . Highest Temperature 378 | . 378 101 Average Temperature 99 | . 116 18 Received Heat Transfer 549 | . 447 102 Effects 8 | . 8 . Shutdowns 1 | . 1 . Energy Bleed 2 | . 2 . Interference 3 | . 3 . Matter Decay 2 | . 2 . Siege Activations . | . . . Martial Activations . | . . . Shielding Activations . | . . . Robots Disrupted . | . . . Combat Hostiles . | . . . Robots Corrupted . | . . . Combat Hostiles . | . . . Parts Fried . | . . . Impact Corruptions . | . . . Robots Melted 4 | . 2 2 Combat Hostiles 4 | . 2 2 Parts Melted 13 | . 13 . Heat Transferred 5473 | . 3848 1625 Parts Sabotaged . | . . . Parts Stolen . | . . . Parts Stripped . | . . . Power Chain Reactions . | . . . Alert | -11 -10 -10 ------- Run | Yrd Mat Sub Maximum Alert Level . | . . . Low Security (%) 100 | 100 100 . Level 1 . | . . . Level 2 . | . . . Level 3 . | . . . Level 4 . | . . . Level 5 . | . . . High Security . | . . . Max Security . | . . . Peak Influence 70 | . 70 . Initial . | . . . Average 5 | . 5 . Influence Increases 268 | . 268 . Destroy 0b10 Robot/C 160 | . 160 . Destroy 0b10 Robot/NC 55 | . 55 . Destroy Leader 40 | . 40 . Successful Hack 11 | . 11 . Destroy Structure 2 | . 2 . Influence Decreases 268 | . 268 . Time Decay 268 | . 268 . Squads Dispatched 3 | . 3 . Investigation 3 | . 3 . Extermination . | . . . Reinforcement . | . . . Assault . | . . . Garrison . | . . . Intercept . | . . . Searches Triggered . | . . . Construction Impeded . | . . . Haulers Reinforced . | . . . Active Scanning Responses . | . . . Cargo Convoy Interrupts . | . . . Stealth | -11 -10 -10 --------- Run | Yrd Mat Sub Distress Signals . | . . . Communications Jammed . | . . . Distress Signals . | . . . Times Spotted 25 | . 19 6 Peak Tracking Total 4 | . 4 2 Tactical Retreats 2 | . 2 . Traps | -11 -10 -10 ------- Run | Yrd Mat Sub Traps Triggered 7 | . 7 . Indirectly . | . . . Trap Hack Attempts . | . . . Triggered . | . . . Disarmed . | . . . Reprogrammed 6 | . 6 . Reused . | . . . Traps Extracted . | . . . Installed . | . . . Triggered . | . . . Machines | -11 -10 -10 ---------- Run | Yrd Mat Sub Machines Disabled . | . . . Max in Single Turn . | . . . Machines Repaired . | . . . Machines Dismantled . | . . . Machines Sabotaged . | . . . Overloaded Fab Kills . | . . . Hacking | -11 -10 -10 --------- Run | Yrd Mat Sub Machines Accessed 3 | . 3 . Terminals 3 | . 3 . Fabricators . | . . . Repair Stations . | . . . Recycling Units . | . . . Scanalyzers . | . . . Garrison Access . | . . . Total Hacks 8 | . 8 . Successful 4 | . 4 . Failed 4 | . 4 . Catastrophic 1 | . 1 . Database Lockouts . | . . . Manual . | . . . Terminals 8 | . 8 . Fabricators . | . . . Repair Stations . | . . . Recycling Units . | . . . Scanalyzers . | . . . Garrison Access . | . . . Terminal Hacks 4 | . 4 . Branch Access Points 1 | . 1 . Recycling Unit Index 1 | . 1 . Locate Traps 1 | . 1 . Reprogram Traps 1 | . 1 . Fabricator Hacks . | . . . Repair Station Hacks . | . . . Recycling Unit Hacks . | . . . Scanalyzer . | . . . Garrison Access Hacks . | . . . Unauthorized Hacks . | . . . Terminals . | . . . Fabricators . | . . . Repair Stations . | . . . Recycling Units . | . . . Scanalyzers . | . . . Garrison Access . | . . . Data Cores Recovered . | . . . Used . | . . . Hacking Detections 3 | . 3 . Full Trace Events 3 | . 3 . Feedback Events . | . . . Feedback Blocked . | . . . Robot Schematics Acquired . | . . . Robots Built . | . . . Authchips . | . . . Time . | . . . Total Robot Build Rating . | . . . Part Schematics Acquired . | . . . Parts Built . | . . . Authchips . | . . . Time . | . . . Total Part Build Rating . | . . . Part Studies Acquired . | . . . Parts Repaired . | . . . Time . | . . . Parts Recycled . | . . . Recycled Matter . | . . . Retrieved Matter . | . . . Retrieved Components . | . . . Parts Scanalyzed . | . . . Part Schematics Acquired . | . . . Parts Damaged . | . . . Bothacking | -11 -10 -10 ------------ Run | Yrd Mat Sub Used RIF Installer . | . . . Robots Hacked . | . . . Non-combat . | . . . Combat . | . . . Robot Hacks Applied . | . . . Relay Couplers Released . | . . . Fabnet Peak Effective % . | . . . Robots Rewired . | . . . Allies Hacked . | . . . Hacks Repelled . | . . . Allies | -11 -10 -10 -------- Run | Yrd Mat Sub Total Allies . | . . . Largest Group . | . . . Highest-Rated Group . | . . . Highest-Rated Ally . | . . . Total Orders . | . . . Ally Attacks . | . . . Total Damage . | . . . Kills . | . . . Allies Corrupted . | . . . Allies Melted . | . . . Intel | -11 -10 -10 ------- Run | Yrd Mat Sub Active Infowar (turns) 1354 | 32 1069 253 Optics 178 | . . 178 Structural 1176 | 32 1069 75 Robot Analysis Total . | . . . Derelict Logs Recovered . | . . . Drone Launches . | . . . Drone Recoveries . | . . . Exploration | -11 -10 -10 ------------- Run | Yrd Mat Sub Turns Passed 1855 | 59 1354 442 Spaces Moved 1057 | 44 829 184 Core 25 | 19 6 . Treads . | . . . Legs 1032 | 25 823 184 Wheels . | . . . Hover . | . . . Flight . | . . . Fastest Speed 50 | 50 120 120 Average Speed 127 | 103 123 153 Slowest Speed 350 | 200 350 190 Overloaded Moves . | . . . Propulsion Burnouts . | . . . Robots Hopped . | . . . Potential Cave-ins . | . . . Cave-ins Triggered . | . . . Exploration Rate (%) 41 | 5 98 20 Regions Visited 2 Branch Regions 1 Pre-discovered Areas . | . . . Known Exits Taken 2 | 1 1 . Unknown Exits Taken . | . . . Scrap Searched . | . . . Spaces Dug . | . . . Terrain Destroyed . | . . . Melee . | . . . Projectile . | . . . AOE . | . . . Terrain Rammed . | . . . Walls Destroyed . | . . . Machines Disabled . | . . . Actions | -11 -10 -10 --------- Run | Yrd Mat Sub Total 1359 | 57 1051 251 Wait 120 | . 106 14 Move 1055 | 43 828 184 Hop . | . . . Pick Up 25 | 7 17 1 Fast Attach 13 | 1 9 3 Attach 10 | 6 2 2 Detach 1 | . . 1 Swap 15 | . 14 1 Drop 12 | . 11 1 Fire 86 | . 63 23 Melee 21 | . . 21 Ram . | . . . Kick 1 | . 1 . Crush . | . . . Escape Stasis . | . . . Rewire . | . . . Trap . | . . . Miscellaneous . | . . . Route ------- -11/Scrapyard -10/Materials (discovered 5 exits: *Mat x3 / *Min / *Sub) -10/Subcaves History --------- Turn | Location | Event 4 | -11/Scrapyard | Identified exit to Materials 4 | -11/Scrapyard | Discovered exit to Materials (range 15) 60 | -11/Scrapyard | Entered Materials 60 | -10/Materials | Evolved 1 slot: Propulsion x1 296 | -10/Materials | Identified exit to Mines 296 | -10/Materials | Discovered exit to Mines (range 12) 307 | -10/Materials | Build established: Hacker-Mutant 532 | -10/Materials | Identified exit to Materials 532 | -10/Materials | Discovered exit to Materials (range 13) 876 | -10/Materials | Discovered exit to Materials (range 5) 960 | -10/Materials | Derelicts attacked the area 1126 | -10/Materials | Discovered exit to Materials (range 16) 1396 | -10/Materials | Identified exit to Subcaves 1396 | -10/Materials | Discovered exit to Subcaves (range 11) 1414 | -10/Materials | Entered Subcaves 1415 | -10/Subcaves | Approached by a straggling Scientist 1417 | -10/Subcaves | Shifting Twisted Machinery released Sub. Beam Cannon 1421 | -10/Subcaves | Shifting Twisted Machinery released Spk. Treads 1461 | -10/Subcaves | Shifting Twisted Machinery released Enh. Flamer 1568 | -10/Subcaves | Core integrity fell below 50% 1831 | -10/Subcaves | Core integrity fell below 20% 1856 | -10/Subcaves | Destroyed by 2G-I56(R) with Subdweller Machine Gun Last Messages --------------- 01689_ C4-3O1(R) suffers critical hit (Burn). 01716_ C4-3O1(R) affixes Scrap Shield Fragment to Scrap Shield. DO-HYW(c): "I think it's somewhere south of here" 01725_ Critical hit (Destroy). 01725_ Enh. Flamer destroyed. 01735_ C4-3O1(R) destroyed. 01738_ Acquired 15 matter. 01744_ Acquired Mining Laser. 01751_ Acquired Structural Scanner. DO-HYW(c): "I think it's somewhere south of here" 01779_ Acquired 9 matter. DO-HYW(c): "I think it's somewhere south of here" 01825_ N4-WAX(R) destroyed. 01826_ Structural Scanner destroyed. 01832_ 2G-I56(R) Sub. Power Source ripped off. 01854_ Aluminum Leg destroyed. Map ----- +----------------------------------------------------+ | ?????????????????????????????????????????????????? | | ?????????????????????????????????????????????????? | | ?????????????????????????????????????????????????? | | ?????????????????????????????????????????????????? | | ?????????????????????????????????????????????????? | | ?????????????????????????????????????????????????? | | ?????????????????????????????????????????????????? | | ?????????????????????????????????????????????????? | | ?????????????????????????????????????????????????? | | ?????????????????????????????????????????????????? | | ?????????????????????????????????????????????????? | | ?????????????????????????????????????????????????? | | ?????????????????????????????????????????????????? | | ??????????????????????????????????############"??? | | ????????????#######?????????################### ?? | | ?????????######### ?????????######## ##### | | ????????? ## # ##?????## # # ### | | ????????? ######### | | ??????????? # ######## ## | | ???????????##### =% ##### # ##### " ## | | ?????????????##]"""" ### #### ####### ""#####? | | ?????????????## ""???#### %# ###?## "#####?? | | ?????????????????????#### ##??### ###???? | | ?????????????????????#### ###??### ##????? | | ????????????????????### * # # ###???## !###???? | | ????????????????????##"" @ ########????####%##??"" | | ?????????????????? """""R" #######????####&####" | | ?????????????????# """##?????????####" # # | | ?????????????????# % ###?????????# " | | ?????????????????############????????## "" | | ?????????????????###########?????????#" " "" # | | ?????????????????????????????????????##" " ##### | | ??????????????????????????????????????#"##"" ### | | ??????????????????????????????????????##?# " | | ????????????????????????????????????????## ### | | ??????????????????????????????????#######"" ### | | ?????????????????????????????????## #?# | | ?????????????????????????????????# ### | | ?????????????????????????????????# ## | | ?????????????????????????????????## ## | | ??????????????????????????????????###### | | ???????????????????????????????????#### | | ??????????????????????????????????## | | ??????????????????????????????????# | | ?????????????????????????????????# | | ?????????????????????????????????# ## | | ?????????????????????????????????###?## | | ??????????????????????????????????????# | | ???????????????????????????????????# ### | | ?????????????????????????????????# #?# | +----------------------------------------------------+ Best States ------------- Heat Dissipation 25 Energy Generation 10 Energy Capacity 250 Matter Stores 300 Matter Capacity 300 Sight Range 21 Terrain Scan Density 10 Resistance: KI 35 Resistance: TH 35 Resistance: EX 35 Resistance: EM 35 Resistance: I 35 Resistance: S 35 Resistance: P 35 Evasion (%) 55 Offensive Hacking 20 Item Schematics ----------------- None Robot Schematics ------------------ None Fabricated ------------ Nothing Repaired ---------- Nothing Studied --------- None Alien Tech Used ----------------- None Achievements -------------- None Challenges ------------ None Game ------ Seed PortableCoolingMapper Manual? 0 Play Time 00:13:57 Cumulative 78.4 hours Start 2025.11.12 @ 12:36:32 End 2025.11.12 @ 12:47:36 Sessions 1 Manual Loads 0 Difficulty Explorer Special Mode None Game No. 67 Rogue 0 Adventurer 0 Explorer 67 Win Type - Total 0 Types 0/0/0/0/0/0/0/0/0/0 Lore% 51 Gallery% 54 Achievement% 42 Wizard Run 0 Options --------- Layout 1 ASCII 0 Keyboard 0 Movement Mouse Keybinds 0 Fullscreen 1 Font 24/Smallcaps Map View 50x35 Zoom Use 0% Tactical HUD 1 Map Filters NONE Filters NONE Steam 1 RUN: 2a62694c-9be6-438f-993f-c632f427fe13